[Event "*** Monthly 3|2 Blitz Masters"]
[Site "Chess.com"]
[Date "2014.11.25"]
[Round "2"]
[White "162a54f5d"]
[Black "stepanosinovsky"]
[Result "1-0"]
[WhiteElo "2310"]
[BlackElo "2298"]
[TimeControl "180+2"]
[EndTime "11:20:35 PST"]
[Termination "162a54f5d won by checkmate"]

1. d4 {[%clk 0:03:00]} 1... Nf6 {[%clk 0:02:58.7]} 2. c4 {[%clk 0:03:00.3]} 2...
g6 {[%clk 0:02:59.7]} 3. g3 {[%clk 0:02:58]} 3... Bg7 {[%clk 0:03:01.6]} 4. Bg2
{[%clk 0:02:57.8]} 4... O-O {[%clk 0:03:03.5]} 5. Nc3 {[%clk 0:02:57.9]} 5... d6
{[%clk 0:03:04.7]} 6. Nf3 {[%clk 0:02:58.7]} 6... Nbd7 {[%clk 0:03:05.6]} 7. Kf1
{[%clk 0:02:53.6]} 7... e5 {[%clk 0:03:06]} 8. Kg1 {[%clk 0:02:51.3]} 8... exd4
{[%clk 0:02:59.7]} 9. Nxd4 {[%clk 0:02:51.8]} 9... Ne5 {[%clk 0:02:58.1]} 10. b3
{[%clk 0:02:53.1]} 10... c6 {[%clk 0:02:54.9]} 11. h3 {[%clk 0:02:53.6]} 11...
Re8 {[%clk 0:02:21.7]} 12. Bb2 {[%clk 0:02:40.1]} 12... h5 {[%clk 0:02:13.6]}
13. Qd2 {[%clk 0:02:37.5]} 13... h4 {[%clk 0:02:13.7]} 14. g4 {[%clk 0:02:29.8]}
14... a5 {[%clk 0:02:03.5]} 15. Rd1 {[%clk 0:02:29.6]} 15... a4 {[%clk
0:02:00.5]} 16. f4 {[%clk 0:02:24.8]} 16... Ned7 {[%clk 0:01:58.6]} 17. Nxa4
{[%clk 0:02:07.5]} 17... Ne4 {[%clk 0:01:53.2]} 18. Qd3 {[%clk 0:02:03.2]} 18...
Rxa4 {[%clk 0:01:44.2]} 19. bxa4 {[%clk 0:02:00.7]} 19... Qb6 {[%clk 0:01:25.3]}
20. Ba1 {[%clk 0:02:00]} 20... Ng3 {[%clk 0:01:20]} 21. Kh2 {[%clk 0:01:22.8]}
21... Nc5 {[%clk 0:00:57.7]} 22. Qc2 {[%clk 0:00:52.2]} 22... Nxh1 {[%clk
0:00:33.1]} 23. Kxh1 {[%clk 0:00:43.5]} 23... Ne6 {[%clk 0:00:32.1]} 24. e3
{[%clk 0:00:26.3]} 24... Qc5 {[%clk 0:00:27.8]} 25. Qf2 {[%clk 0:00:26.3]} 25...
d5 {[%clk 0:00:26.3]} 26. cxd5 {[%clk 0:00:26.9]} 26... cxd5 {[%clk 0:00:27.1]}
27. Nxe6 {[%clk 0:00:21]} 27... Bxe6 {[%clk 0:00:27.7]} 28. Bxg7 {[%clk
0:00:20.7]} 28... Kxg7 {[%clk 0:00:29.1]} 29. f5 {[%clk 0:00:22.1]} 29... Bc8
{[%clk 0:00:22.5]} 30. fxg6 {[%clk 0:00:13.4]} 30... fxg6 {[%clk 0:00:21]} 31.
g5 {[%clk 0:00:14.7]} 31... Qe7 {[%clk 0:00:17.4]} 32. Qxh4 {[%clk 0:00:15.2]}
32... Rh8 {[%clk 0:00:17.9]} 33. Qd4+ {[%clk 0:00:16.1]} 33... Kh7 {[%clk
0:00:18.5]} 34. Qxd5 {[%clk 0:00:15.5]} 34... Bf5 {[%clk 0:00:18.1]} 35. e4
{[%clk 0:00:14.6]} 35... Be6 {[%clk 0:00:18.5]} 36. Qd6 {[%clk 0:00:15.5]} 36...
Qf7 {[%clk 0:00:16.5]} 37. Rf1 {[%clk 0:00:16.1]} 37... Qe8 {[%clk 0:00:16.2]}
38. Qf4 {[%clk 0:00:13.8]} 38... Kg8 {[%clk 0:00:16.1]} 39. Kh2 {[%clk
0:00:13.2]} 39... Qd7 {[%clk 0:00:17.1]} 40. Qf8+ {[%clk 0:00:12.5]} 40... Kh7
{[%clk 0:00:17.7]} 41. Qh6+ {[%clk 0:00:14.4]} 41... Kg8 {[%clk 0:00:18]} 42.
Rf8# {[%clk 0:00:16.3]} 1-0

[Event "*** Monthly 3|2 Blitz Masters"]
[Site "Chess.com"]
[Date "2014.11.25"]
[Round "2"]
[White "Sebastian"]
[Black "LePlusMortel"]
[Result "1-0"]
[WhiteElo "2528"]
[BlackElo "2376"]
[TimeControl "180+2"]
[EndTime "11:20:41 PST"]
[Termination "Sebastian won by resignation"]

1. e4 {[%clk 0:02:59.3]} 1... c5 {[%clk 0:02:47.6]} 2. Nf3 {[%clk 0:02:59.9]}
2... d6 {[%clk 0:02:48.3]} 3. d4 {[%clk 0:03:01]} 3... cxd4 {[%clk 0:02:50.2]}
4. Nxd4 {[%clk 0:03:02.6]} 4... Nf6 {[%clk 0:02:51.8]} 5. Nc3 {[%clk 0:03:04.2]}
5... g6 {[%clk 0:02:53.3]} 6. Be3 {[%clk 0:03:05.2]} 6... Bg7 {[%clk 0:02:54.8]}
7. f3 {[%clk 0:03:06.9]} 7... O-O {[%clk 0:02:56.4]} 8. Qd2 {[%clk 0:03:08.5]}
8... Nc6 {[%clk 0:02:57.9]} 9. O-O-O {[%clk 0:03:10.1]} 9... Nxd4 {[%clk
0:02:59]} 10. Bxd4 {[%clk 0:03:11.1]} 10... Be6 {[%clk 0:03:00.7]} 11. Kb1
{[%clk 0:03:12.6]} 11... Qc7 {[%clk 0:03:02.3]} 12. h4 {[%clk 0:03:13.2]} 12...
Rfc8 {[%clk 0:03:03.4]} 13. h5 {[%clk 0:03:14.1]} 13... Qa5 {[%clk 0:03:04.5]}
14. hxg6 {[%clk 0:03:15.4]} 14... hxg6 {[%clk 0:03:06.3]} 15. a3 {[%clk
0:03:16.8]} 15... Rab8 {[%clk 0:03:07.1]} 16. Bd3 {[%clk 0:03:18.3]} 16... b5
{[%clk 0:03:08.1]} 17. Qg5 {[%clk 0:03:19.1]} 17... Rc5 {[%clk 0:03:09]} 18.
Bxc5 {[%clk 0:03:15.4]} 18... dxc5 {[%clk 0:03:10.1]} 19. Qxc5 {[%clk
0:03:15.8]} 19... Nd7 {[%clk 0:03:11.7]} 20. Qb4 {[%clk 0:03:12.7]} 20... Qc7
{[%clk 0:03:13.2]} 21. Nd5 {[%clk 0:03:13.3]} 21... Bxd5 {[%clk 0:03:12.2]} 22.
exd5 {[%clk 0:03:15.2]} 22... Nc5 {[%clk 0:02:49.6]} 23. Qh4 {[%clk 0:02:41.7]}
23... a5 {[%clk 0:02:33.9]} 24. Rde1 {[%clk 0:02:23.3]} 24... Nxd3 {[%clk
0:01:30.4]} 25. cxd3 {[%clk 0:02:16.2]} 25... Bf6 {[%clk 0:01:28]} 26. Qh2
{[%clk 0:02:13]} 26... Qd8 {[%clk 0:01:21.3]} 27. Rxe7 {[%clk 0:02:12.3]} 27...
Bg7 {[%clk 0:00:53]} 28. Qc7 {[%clk 0:02:00.9]} 28... Qxc7 {[%clk 0:00:45.2]}
29. Rxc7 {[%clk 0:02:01.6]} 29... b4 {[%clk 0:00:46.9]} 30. axb4 {[%clk
0:02:01.9]} 30... Rxb4 {[%clk 0:00:44.2]} 31. Rc8+ {[%clk 0:02:02.4]} 31... Bf8
{[%clk 0:00:45.4]} 32. Re1 {[%clk 0:01:43]} 32... Kg7 {[%clk 0:00:42]} 33. Ree8
{[%clk 0:01:43.8]} 33... Bd6 {[%clk 0:00:40.6]} 34. Rc6 {[%clk 0:01:45.4]} 34...
Bg3 {[%clk 0:00:32.9]} 35. Re4 {[%clk 0:01:45.6]} 35... Rb5 {[%clk 0:00:30.8]}
36. d6 {[%clk 0:01:46.5]} 36... Rd5 {[%clk 0:00:31.2]} 37. Kc2 {[%clk 0:01:46]}
37... Bxd6 {[%clk 0:00:30.6]} 38. d4 {[%clk 0:01:45.6]} 38... Bb4 {[%clk
0:00:26]} 39. Kd3 {[%clk 0:01:45]} 39... Rh5 {[%clk 0:00:24.5]} 40. Rc7 {[%clk
0:01:43]} 40... Rh2 {[%clk 0:00:23.2]} 41. Re2 {[%clk 0:01:41]} 41... Rh1 {[%clk
0:00:16.5]} 42. Rc6 {[%clk 0:01:40.7]} 42... Rd1+ {[%clk 0:00:17]} 43. Kc4
{[%clk 0:01:41.4]} 43... Rc1+ {[%clk 0:00:12.8]} 44. Kd5 {[%clk 0:01:41.4]}
44... Rd1 {[%clk 0:00:14.7]} 45. Rc7 {[%clk 0:01:40.4]} 45... g5 {[%clk
0:00:10]} 46. Rc4 {[%clk 0:01:40.3]} 46... Kg6 {[%clk 0:00:09.9]} 47. Kc6 {[%clk
0:01:41.8]} 47... f5 {[%clk 0:00:04.9]} 48. d5 {[%clk 0:01:42.5]} 48... Kh5
{[%clk 0:00:06.2]} 49. Re5 {[%clk 0:01:40]} 49... f4 {[%clk 0:00:07.4]} 50. Re2
{[%clk 0:01:38.2]} 50... Kh4 {[%clk 0:00:08]} 51. Rxb4 {[%clk 0:01:22.8]} 51...
axb4 {[%clk 0:00:09.9]} 52. d6 {[%clk 0:01:24.4]} 52... Rc1+ {[%clk 0:00:11.4]}
53. Kd5 {[%clk 0:01:23]} 53... b3 {[%clk 0:00:11.4]} 54. d7 {[%clk 0:01:23.9]}
54... Kg3 {[%clk 0:00:09.3]} 55. Rd2 {[%clk 0:01:21.5]} 55... Rc2 {[%clk
0:00:10.4]} 56. Rd1 {[%clk 0:01:22.9]} 56... Rxg2 {[%clk 0:00:06.5]} 57. d8=Q
{[%clk 0:01:22.5]} 57... Rxb2 {[%clk 0:00:08.4]} 58. Qxg5+ {[%clk 0:01:22.6]}
58... Kxf3 {[%clk 0:00:10]} 59. Rf1+ {[%clk 0:01:22.4]} 59... Ke2 {[%clk
0:00:11.1]} 60. Qg2+ {[%clk 0:01:22.8]} 60... Kd3 {[%clk 0:00:11.3]} 61. Qxb2
{[%clk 0:01:23.3]} 1-0

[Event "*** Monthly 3|2 Blitz Masters"]
[Site "Chess.com"]
[Date "2014.11.25"]
[Round "2"]
[White "GedoGluperd"]
[Black "pedromartinez91"]
[Result "1-0"]
[WhiteElo "2311"]
[BlackElo "2066"]
[TimeControl "180+2"]
[EndTime "11:20:49 PST"]
[Termination "GedoGluperd won by resignation"]

1. d4 {[%clk 0:03:00]} 1... d5 {[%clk 0:02:58.5]} 2. c4 {[%clk 0:03:00.6]} 2...
dxc4 {[%clk 0:02:59.3]} 3. Nf3 {[%clk 0:03:01.1]} 3... Nf6 {[%clk 0:03:00]} 4.
e3 {[%clk 0:03:02.2]} 4... e6 {[%clk 0:03:01.3]} 5. Bxc4 {[%clk 0:03:03.2]} 5...
c5 {[%clk 0:03:02.9]} 6. O-O {[%clk 0:03:04]} 6... Nc6 {[%clk 0:03:04.4]} 7. a3
{[%clk 0:02:59.4]} 7... Qc7 {[%clk 0:03:03.7]} 8. Qe2 {[%clk 0:02:58.7]} 8...
cxd4 {[%clk 0:03:04.3]} 9. exd4 {[%clk 0:02:59.3]} 9... Be7 {[%clk 0:03:05.9]}
10. Nc3 {[%clk 0:02:59.7]} 10... O-O {[%clk 0:03:06.9]} 11. Nb5 {[%clk
0:02:59.9]} 11... Qb8 {[%clk 0:02:33.7]} 12. g3 {[%clk 0:03:00.7]} 12... Bd6
{[%clk 0:02:33.7]} 13. Nxd6 {[%clk 0:02:55.7]} 13... Qxd6 {[%clk 0:02:33.4]} 14.
Bf4 {[%clk 0:02:54.6]} 14... Qd8 {[%clk 0:02:30.3]} 15. Rfd1 {[%clk 0:02:54.5]}
15... Nd5 {[%clk 0:02:30.8]} 16. Bg5 {[%clk 0:02:52.6]} 16... Nce7 {[%clk
0:02:09.6]} 17. Bd3 {[%clk 0:02:48.1]} 17... Bd7 {[%clk 0:02:03.1]} 18. Qe4
{[%clk 0:02:45.2]} 18... f5 {[%clk 0:01:59.7]} 19. Qh4 {[%clk 0:02:37.9]} 19...
h6 {[%clk 0:01:57.7]} 20. Bd2 {[%clk 0:02:35]} 20... Nc6 {[%clk 0:01:58.1]} 21.
Qh3 {[%clk 0:02:30]} 21... Qf6 {[%clk 0:01:58.4]} 22. Bc3 {[%clk 0:02:19.3]}
22... Nxc3 {[%clk 0:01:59]} 23. bxc3 {[%clk 0:02:20.1]} 23... Kh8 {[%clk
0:01:37.5]} 24. Re1 {[%clk 0:02:19.8]} 24... Rae8 {[%clk 0:01:33.3]} 25. Rab1
{[%clk 0:02:19.2]} 25... b6 {[%clk 0:01:32.8]} 26. Bb5 {[%clk 0:02:13.3]} 26...
f4 {[%clk 0:01:29.1]} 27. g4 {[%clk 0:02:09.3]} 27... e5 {[%clk 0:01:18.9]} 28.
dxe5 {[%clk 0:02:02.2]} 28... Nxe5 {[%clk 0:01:17.2]} 29. Nxe5 {[%clk
0:01:57.8]} 29... Rxe5 {[%clk 0:00:47.2]} 30. Bxd7 {[%clk 0:01:51.4]} 30... f3
{[%clk 0:00:43.9]} 31. Qg3 {[%clk 0:01:46.5]} 31... Rxe1+ {[%clk 0:00:42.7]} 32.
Rxe1 {[%clk 0:01:45.5]} 32... Qxc3 {[%clk 0:00:44.3]} 33. Rf1 {[%clk 0:01:45.4]}
33... Qxa3 {[%clk 0:00:42.6]} 34. h3 {[%clk 0:01:41.1]} 34... Qe7 {[%clk
0:00:43.2]} 35. Bf5 {[%clk 0:01:41.2]} 35... Qf6 {[%clk 0:00:37.8]} 36. Re1
{[%clk 0:01:38.1]} 36... g6 {[%clk 0:00:38.4]} 37. Be4 {[%clk 0:01:35.6]} 37...
b5 {[%clk 0:00:37.9]} 38. Re3 {[%clk 0:01:35.3]} 38... Qf4 {[%clk 0:00:23.7]}
39. Qxf4 {[%clk 0:01:31.8]} 39... Rxf4 {[%clk 0:00:23.9]} 40. Bxg6 {[%clk
0:01:33.1]} 40... Kg7 {[%clk 0:00:24.6]} 41. Be4 {[%clk 0:01:33.9]} 41... b4
{[%clk 0:00:26]} 42. Bxf3 {[%clk 0:01:33.6]} 42... a5 {[%clk 0:00:27.1]} 43. Bc6
{[%clk 0:01:34]} 43... Rc4 {[%clk 0:00:26.9]} 44. Ba4 {[%clk 0:01:33.2]} 44...
Rc1+ {[%clk 0:00:26.4]} 45. Kg2 {[%clk 0:01:34.2]} 45... Ra1 {[%clk 0:00:28]}
46. Bb5 {[%clk 0:01:32.4]} 46... a4 {[%clk 0:00:29.1]} 47. Re4 {[%clk 0:01:33]}
47... b3 {[%clk 0:00:26.7]} 48. Bxa4 {[%clk 0:01:32.6]} 48... b2 {[%clk
0:00:27.8]} 49. Bc2 {[%clk 0:01:33.7]} 49... Rc1 {[%clk 0:00:28.9]} 50. Bd3
{[%clk 0:01:34.2]} 50... Rc3 {[%clk 0:00:29.4]} 51. Rb4 {[%clk 0:01:35]} 51...
Rxd3 {[%clk 0:00:28.9]} 52. Rxb2 {[%clk 0:01:36.1]} 52... h5 {[%clk 0:00:30.4]}
53. Rb7+ {[%clk 0:01:34.6]} 53... Kg6 {[%clk 0:00:30.7]} 54. Rb6+ {[%clk
0:01:35.8]} 54... Kg7 {[%clk 0:00:31.5]} 55. g5 {[%clk 0:01:35.8]} 55... h4
{[%clk 0:00:31.5]} 56. Rf6 {[%clk 0:01:34]} 56... Rd5 {[%clk 0:00:30.9]} 57. f4
{[%clk 0:01:30.9]} 57... Rd3 {[%clk 0:00:32]} 58. Rh6 {[%clk 0:01:31.3]} 58...
Rg3+ {[%clk 0:00:32.1]} 59. Kh2 {[%clk 0:01:32.3]} 59... Rf3 {[%clk 0:00:32.5]}
60. Rxh4 {[%clk 0:01:33.4]} 60... Kg6 {[%clk 0:00:34]} 61. Kg2 {[%clk
0:01:34.3]} 61... Ra3 {[%clk 0:00:34.3]} 62. Rh6+ {[%clk 0:01:30.5]} 62... Kg7
{[%clk 0:00:31.2]} 63. Rd6 {[%clk 0:01:28.9]} 63... Ra4 {[%clk 0:00:31.7]} 64.
Kg3 {[%clk 0:01:29]} 1-0

[Event "*** Monthly 3|2 Blitz Masters"]
[Site "Chess.com"]
[Date "2014.11.25"]
[Round "2"]
[White "GMBenjaminBok"]
[Black "hitaman"]
[Result "1-0"]
[WhiteElo "2621"]
[BlackElo "2360"]
[TimeControl "180+2"]
[EndTime "11:21:48 PST"]
[Termination "GMBenjaminBok won by resignation"]

1. e4 {[%clk 0:03:00]} 1... c5 {[%clk 0:02:57.6]} 2. Nf3 {[%clk 0:03:00.9]} 2...
e6 {[%clk 0:02:58.8]} 3. d4 {[%clk 0:03:02.3]} 3... cxd4 {[%clk 0:03:00.1]} 4.
Nxd4 {[%clk 0:03:04]} 4... a6 {[%clk 0:03:01.4]} 5. Bd3 {[%clk 0:03:04.8]} 5...
Bc5 {[%clk 0:03:00.4]} 6. Nb3 {[%clk 0:03:04]} 6... Ba7 {[%clk 0:03:01.4]} 7.
Qe2 {[%clk 0:03:02.7]} 7... Nc6 {[%clk 0:03:01.8]} 8. Be3 {[%clk 0:03:02]} 8...
d6 {[%clk 0:03:02.7]} 9. O-O {[%clk 0:03:00.2]} 9... Nf6 {[%clk 0:03:02.6]} 10.
c4 {[%clk 0:02:59.1]} 10... O-O {[%clk 0:03:02.7]} 11. Nc3 {[%clk 0:02:59.9]}
11... Bxe3 {[%clk 0:02:59.4]} 12. Qxe3 {[%clk 0:03:00.3]} 12... b6 {[%clk
0:03:00.7]} 13. Rfd1 {[%clk 0:03:00.3]} 13... Qc7 {[%clk 0:02:58.9]} 14. Be2
{[%clk 0:02:56.4]} 14... Rd8 {[%clk 0:02:47]} 15. Rac1 {[%clk 0:02:49.4]} 15...
Ne5 {[%clk 0:02:47.4]} 16. Rd4 {[%clk 0:02:30]} 16... Bb7 {[%clk 0:02:40.2]} 17.
Rcd1 {[%clk 0:02:26.1]} 17... Nc6 {[%clk 0:02:34.3]} 18. R4d2 {[%clk 0:02:23.7]}
18... Na5 {[%clk 0:02:31.7]} 19. Nxa5 {[%clk 0:02:15.3]} 19... bxa5 {[%clk
0:02:33.2]} 20. f3 {[%clk 0:02:08.9]} 20... e5 {[%clk 0:02:25.4]} 21. b3 {[%clk
0:02:05.1]} 21... Kf8 {[%clk 0:02:21.2]} 22. Rd3 {[%clk 0:02:02.1]} 22... h6
{[%clk 0:02:15.3]} 23. Kh1 {[%clk 0:02:00.8]} 23... Ke7 {[%clk 0:02:14.6]} 24.
Rc1 {[%clk 0:01:48.1]} 24... Qc5 {[%clk 0:02:13.4]} 25. Qd2 {[%clk 0:01:44.9]}
25... Bc6 {[%clk 0:02:12.9]} 26. Bf1 {[%clk 0:01:29.4]} 26... Rac8 {[%clk
0:02:11.9]} 27. Qe1 {[%clk 0:01:24.8]} 27... Qa3 {[%clk 0:02:06]} 28. Rdd1
{[%clk 0:01:22.5]} 28... Qc5 {[%clk 0:01:54.3]} 29. Rc2 {[%clk 0:01:09]} 29...
Nd7 {[%clk 0:01:54.2]} 30. Qg3 {[%clk 0:01:04.5]} 30... Kf8 {[%clk 0:01:52.4]}
31. Rcd2 {[%clk 0:01:01.9]} 31... Nb6 {[%clk 0:01:49.7]} 32. Qe1 {[%clk
0:00:56.9]} 32... Rc7 {[%clk 0:01:46.5]} 33. Rd3 {[%clk 0:00:47.4]} 33... Rcd7
{[%clk 0:01:46.2]} 34. g3 {[%clk 0:00:47.5]} 34... a4 {[%clk 0:01:40.8]} 35. Qd2
{[%clk 0:00:44.4]} 35... axb3 {[%clk 0:01:29.7]} 36. axb3 {[%clk 0:00:44.4]}
36... Qb4 {[%clk 0:01:12.2]} 37. Bh3 {[%clk 0:00:40.8]} 37... Re7 {[%clk
0:01:13.5]} 38. Kg2 {[%clk 0:00:26.6]} 38... Bd7 {[%clk 0:01:12.3]} 39. Rxd6
{[%clk 0:00:16.9]} 39... Bxh3+ {[%clk 0:01:05.1]} 40. Kxh3 {[%clk 0:00:17.9]}
40... Red7 {[%clk 0:00:25.6]} 41. Rxd7 {[%clk 0:00:13.4]} 41... Rxd7 {[%clk
0:00:27.2]} 42. Nd5 {[%clk 0:00:12.8]} 42... Qd6 {[%clk 0:00:23.9]} 43. Kg2
{[%clk 0:00:12.8]} 43... Qc5 {[%clk 0:00:24.1]} 44. Qf2 {[%clk 0:00:11.9]} 44...
Qc6 {[%clk 0:00:14.8]} 45. Rd3 {[%clk 0:00:11.7]} 45... Nc8 {[%clk 0:00:15.6]}
46. Qd2 {[%clk 0:00:11.4]} 46... Qc5 {[%clk 0:00:14.5]} 47. Ne3 {[%clk
0:00:11.3]} 47... Rd4 {[%clk 0:00:13.9]} 48. Nf5 {[%clk 0:00:11.6]} 48... Rxd3
{[%clk 0:00:14.6]} 49. Qxd3 {[%clk 0:00:13.5]} 49... Qb6 {[%clk 0:00:12.7]} 50.
c5 {[%clk 0:00:14.3]} 50... Qc7 {[%clk 0:00:13.5]} 51. b4 {[%clk 0:00:15.8]}
51... Ne7 {[%clk 0:00:14.6]} 52. Nxe7 {[%clk 0:00:15.5]} 52... Kxe7 {[%clk
0:00:16.2]} 53. Qxa6 {[%clk 0:00:17.1]} 53... Qd7 {[%clk 0:00:16]} 54. Qe2
{[%clk 0:00:17.2]} 54... Qa4 {[%clk 0:00:16.7]} 55. Qd2 {[%clk 0:00:17.9]} 55...
Qb5 {[%clk 0:00:16.8]} 56. Qd6+ {[%clk 0:00:18.2]} 1-0

[Event "*** Monthly 3|2 Blitz Masters"]
[Site "Chess.com"]
[Date "2014.11.25"]
[Round "2"]
[White "rhungaski"]
[Black "GulamaliRises"]
[Result "1/2-1/2"]
[WhiteElo "2422"]
[BlackElo "2428"]
[TimeControl "180+2"]
[EndTime "11:22:05 PST"]
[Termination "Game drawn by repetition"]

1. e4 {[%clk 0:03:00]} 1... c5 {[%clk 0:02:43.8]} 2. Nf3 {[%clk 0:03:00.8]} 2...
d6 {[%clk 0:02:45.1]} 3. d4 {[%clk 0:03:02.2]} 3... cxd4 {[%clk 0:02:47]} 4.
Nxd4 {[%clk 0:03:03.9]} 4... Nf6 {[%clk 0:02:48.6]} 5. Nc3 {[%clk 0:03:04.8]}
5... a6 {[%clk 0:02:50.1]} 6. Be2 {[%clk 0:03:05.5]} 6... e6 {[%clk 0:02:48.1]}
7. a4 {[%clk 0:03:05.6]} 7... Qc7 {[%clk 0:02:49.3]} 8. O-O {[%clk 0:03:06.3]}
8... Be7 {[%clk 0:02:50.8]} 9. Be3 {[%clk 0:03:07.3]} 9... O-O {[%clk
0:02:47.7]} 10. f4 {[%clk 0:03:08.8]} 10... Nc6 {[%clk 0:02:49]} 11. Kh1 {[%clk
0:03:09]} 11... Re8 {[%clk 0:02:50.2]} 12. Bf3 {[%clk 0:03:09.9]} 12... Bf8
{[%clk 0:02:45.8]} 13. g4 {[%clk 0:02:55]} 13... Nxd4 {[%clk 0:02:42]} 14. Bxd4
{[%clk 0:02:56.1]} 14... e5 {[%clk 0:02:43.5]} 15. Bg1 {[%clk 0:02:56.9]} 15...
exf4 {[%clk 0:02:41.6]} 16. g5 {[%clk 0:02:58.2]} 16... Nd7 {[%clk 0:02:42.7]}
17. Nd5 {[%clk 0:02:59.6]} 17... Qd8 {[%clk 0:02:44]} 18. Qd2 {[%clk 0:02:48.2]}
18... Ne5 {[%clk 0:02:31.9]} 19. Qxf4 {[%clk 0:02:36.2]} 19... Bh3 {[%clk
0:02:15.5]} 20. Bg2 {[%clk 0:02:28.1]} 20... Bxg2+ {[%clk 0:02:14.4]} 21. Kxg2
{[%clk 0:02:30]} 21... Rc8 {[%clk 0:02:15.6]} 22. c3 {[%clk 0:02:29.3]} 22...
Rc6 {[%clk 0:01:19]} 23. Bd4 {[%clk 0:02:15.3]} 23... Qd7 {[%clk 0:01:19.1]} 24.
Qg3 {[%clk 0:02:14]} 24... Ng6 {[%clk 0:00:59.5]} 25. Rae1 {[%clk 0:02:09.2]}
25... Ne7 {[%clk 0:00:51]} 26. Rf3 {[%clk 0:01:25.6]} 26... Nxd5 {[%clk
0:00:40]} 27. exd5 {[%clk 0:01:27.5]} 27... Rc7 {[%clk 0:00:41.4]} 28. b3 {[%clk
0:01:13.3]} 28... Rxe1 {[%clk 0:00:32.2]} 29. Qxe1 {[%clk 0:01:15.2]} 29... Qg4+
{[%clk 0:00:33.5]} 30. Rg3 {[%clk 0:01:07]} 30... Qf5 {[%clk 0:00:34.5]} 31. c4
{[%clk 0:00:47.9]} 31... b5 {[%clk 0:00:35.5]} 32. axb5 {[%clk 0:00:17.8]} 32...
axb5 {[%clk 0:00:36.1]} 33. Bb6 {[%clk 0:00:18.9]} 33... Re7 {[%clk 0:00:36.7]}
34. Qf2 {[%clk 0:00:20.3]} 34... Qe4+ {[%clk 0:00:38.1]} 35. Qf3 {[%clk
0:00:21.5]} 35... bxc4 {[%clk 0:00:39.8]} 36. Qxe4 {[%clk 0:00:21.6]} 36... Rxe4
{[%clk 0:00:41.7]} 37. bxc4 {[%clk 0:00:23.2]} 37... Rxc4 {[%clk 0:00:43.6]} 38.
Ra3 {[%clk 0:00:24.4]} 38... f6 {[%clk 0:00:41]} 39. gxf6 {[%clk 0:00:24.9]}
39... gxf6 {[%clk 0:00:42.7]} 40. Ra8 {[%clk 0:00:26.5]} 40... Kf7 {[%clk
0:00:43.5]} 41. Bd8 {[%clk 0:00:27.2]} 41... Rd4 {[%clk 0:00:43.3]} 42. Bxf6
{[%clk 0:00:27.4]} 42... Rxd5 {[%clk 0:00:42.2]} 43. Bh4 {[%clk 0:00:28.7]}
43... Rd2+ {[%clk 0:00:42.4]} 44. Kg3 {[%clk 0:00:25.1]} 44... d5 {[%clk
0:00:43.4]} 45. Ra7+ {[%clk 0:00:24.4]} 45... Kg6 {[%clk 0:00:41.4]} 46. Ra6+
{[%clk 0:00:21.4]} 46... Kf7 {[%clk 0:00:38.4]} 47. Ra7+ {[%clk 0:00:21.9]}
47... Kg8 {[%clk 0:00:28.7]} 48. h3 {[%clk 0:00:16.2]} 48... Rd3+ {[%clk
0:00:22.1]} 49. Kg4 {[%clk 0:00:17]} 49... Rd4+ {[%clk 0:00:23.6]} 50. Kh5
{[%clk 0:00:17.4]} 50... Re4 {[%clk 0:00:22.7]} 51. Bf6 {[%clk 0:00:16.2]} 51...
Rf4 {[%clk 0:00:17.8]} 52. Bg5 {[%clk 0:00:10.2]} 52... Rf1 {[%clk 0:00:17.5]}
53. Rd7 {[%clk 0:00:09.5]} 53... Rd1 {[%clk 0:00:17.9]} 54. Bf6 {[%clk
0:00:09.6]} 54... Rf1 {[%clk 0:00:17.2]} 55. Bg5 {[%clk 0:00:05.4]} 55... Rd1
{[%clk 0:00:16.4]} 56. Bf6 {[%clk 0:00:06.4]} 56... Rf1 {[%clk 0:00:15.2]} 57.
Bg5 {[%clk 0:00:07.6]} 57... Rf5 {[%clk 0:00:16.9]} 58. Kg4 {[%clk 0:00:08.4]}
58... Rf7 {[%clk 0:00:18]} 59. Rxd5 {[%clk 0:00:09.1]} 59... h6 {[%clk
0:00:19.2]} 60. Bf4 {[%clk 0:00:09.4]} 60... Kh7 {[%clk 0:00:20.5]} 61. h4
{[%clk 0:00:10.2]} 61... Bg7 {[%clk 0:00:21.8]} 62. h5 {[%clk 0:00:10.8]} 62...
Bf6 {[%clk 0:00:22.6]} 63. Rd6 {[%clk 0:00:10.5]} 63... Rg7+ {[%clk 0:00:23.9]}
64. Kf5 {[%clk 0:00:11.9]} 64... Bg5 {[%clk 0:00:25.8]} 65. Be5 {[%clk
0:00:11.9]} 65... Rf7+ {[%clk 0:00:27.1]} 66. Ke4 {[%clk 0:00:12.8]} 66... Re7
{[%clk 0:00:26.7]} 67. Kf5 {[%clk 0:00:13.2]} 67... Rf7+ {[%clk 0:00:28.1]} 68.
Ke4 {[%clk 0:00:14.4]} 68... Re7 {[%clk 0:00:27.5]} 69. Kf5 {[%clk 0:00:15.7]}
69... Rf7+ {[%clk 0:00:28.5]} 1/2-1/2